Cogmind - Beta 13 --- EXPLORER MODE // 2024.03.11 @ 14:55:25 Player: Puck Result: Self-destructed Performance ------------- Evolutions (2) 1000 Regions Visited (5) 1000 Robots Destroyed (25) 125 Value Destroyed (586) 586 Prototype IDs (2) 40 Alien Tech Used (0) 0 Bonus (0) 0 TOTAL SCORE: 2751 Bonus ------- None Cogmind --------- Core Integrity 535/550 Matter 162/300 Energy 98/125 System Corruption 0% Temperature Cool (0) Movement Treading (158) Location -8/Materials Parts ------- > --- POWER (1) -------- Light Ion Engine > --- PROPULSION (4) --- Light Treads Light Treads Armored Treads Advanced Treads > --- UTILITY (4) ------ Heat Sink High-capacity Storage Unit Hardened Light Armor Plating Hardened Light Armor Plating > --- WEAPON (3) ------- Enhanced Autogun Enhanced Autogun Enhanced Autogun > --- INVENTORY (20) --- Light Treads Airjet Combat Airjet Coolant Injector Coolant Injector Coolant Injector Coolant Injector High-capacity Battery (250) Large Matter Pod (150) Structural Scanner Hardened Medium Armor Plating Hacking Suite Long-range Tractor Beam Bomb Drone Bay (16/16) Assault Cannon Assault Cannon Rocket Launcher Remote Datajack Chainsword Peak State ------------ > --- POWER ------------ Light Ion Engine > --- PROPULSION ------- Light Treads Light Treads Armored Treads Advanced Treads > --- UTILITY ---------- Heat Sink High-capacity Storage Unit Hardened Light Armor Plating Hardened Light Armor Plating > --- WEAPON ----------- Enhanced Autogun Enhanced Autogun Enhanced Autogun > --- INVENTORY -------- Light Treads Airjet Combat Airjet Coolant Injector Coolant Injector Coolant Injector Coolant Injector High-capacity Battery Large Matter Pod Structural Scanner Hardened Medium Armor Plating Hacking Suite Long-range Tractor Beam Bomb Drone Bay Assault Cannon Assault Cannon Rocket Launcher Remote Datajack Chainsword [Rating: 33] Favorites ----------- Power Light Ion Engine Engine Light Ion Engine Propulsion Light Treads Treads Light Treads Leg Aluminum Leg Utility Light Armor Plating Device Heat Sink Storage Medium Storage Unit Protection Light Armor Plating Weapon Light Cannon Energy Gun Medium Laser Ballistic Gun Enhanced Autogun Ballistic Cannon Light Cannon Build | -11 -10 -10 -10 -9 -8 ------- Run | Yrd Mat Min Exi Min Mat Slots Evolved 5 | . 1 . . . 4 Power . | . . . . . . Propulsion 2 | . . . . . 2 Utility 2 | . . . . . 2 Weapon 1 | . 1 . . . . Parts Attached 24 | . 8 . 1 2 13 Power 1 | . . . 1 . . Engine 1 | . . . 1 . . Core . | . . . . . . Reactor . | . . . . . . Propulsion 7 | . 3 . . . 4 Treads 7 | . 3 . . . 4 Leg . | . . . . . . Wheel . | . . . . . . Hover . | . . . . . . Flight . | . . . . . . Utility 7 | . 1 . . 1 5 Device 2 | . . . . . 2 Storage 1 | . . . . . 1 Processor . | . . . . . . Hackware . | . . . . . . Protection 4 | . 1 . . 1 2 Artifact . | . . . . . . Weapon 9 | . 4 . . 1 4 Energy Gun 1 | . 1 . . . . Energy Cannon . | . . . . . . Ballistic Gun 3 | . . . . . 3 Ballistic Cannon 5 | . 3 . . 1 1 Launcher . | . . . . . . Special Weapon . | . . . . . . Impact Weapon . | . . . . . . Slashing Weapon . | . . . . . . Piercing Weapon . | . . . . . . Special Melee Weapon . | . . . . . . Unidentified Prototypes 2 | . . . . . 2 Parts Lost . | . . . . . . Power . | . . . . . . Propulsion . | . . . . . . Utility . | . . . . . . Weapon . | . . . . . . Highest Loss Streak . | . . . . . . To Critical Strikes . | . . . . . . Average Slot Usage (%) 99 | . 98 100 100 100 97 Engine 11 | . 12 12 12 12 8 Treads 24 | . 10 25 25 25 32 Leg 1 | . 14 . . . . Device 1 | . . . . . 7 Storage 11 | . 12 12 12 12 8 Protection 12 | . 12 12 12 12 14 Energy Gun 1 | . 13 . . . . Ballistic Gun 1 | . 6 . . . 3 Ballistic Cannon 32 | . 15 37 37 37 20 Naked Turns . | . . . . . . Heaviest Build 65 | 17 25 25 25 25 65 Greatest Support 82 | 20 40 40 40 40 82 Greatest Overweight (x) 1 | . 1 . . . . Average Overweight (x) . | . . . . . . Largest Inventory Capacity 20 | 10 10 10 10 10 20 Average Capacity 11 | 10 10 10 10 10 19 Most Carried 20 | 7 10 10 10 10 20 Average Carried 10 | 7 8 9 9 9 13 Final Capacity 20 | 10 10 10 10 10 20 Final Carried 20 | 7 10 10 10 10 20 Class Distribution -------------------- 100% | Hacker-Tank Dominant Class ---------------- Hacker-Tank | -10/Materials Hacker-Tank | -10/Mines Hacker-Tank | -10/Exiles Hacker-Tank | -9/Mines Hacker-Tank | -8/Materials Resources | -11 -10 -10 -10 -9 -8 ----------- Run | Yrd Mat Min Exi Min Mat Matter Collected 750 | 200 166 129 10 62 183 Remotely . | . . . . . . Salvage Created 514 | . 178 73 . 23 240 Parts 41 | . 12 8 . 6 15 Haulers Intercepted 1 | . 1 . . . . Recyclers Shooed 1 | . . 1 . . . Parts Field Recycled . | . . . . . . Retrieved Matter . | . . . . . . Parts Self-Destructed . | . . . . . . Prevented . | . . . . . . Kills | -11 -10 -10 -10 -9 -8 ------- Run | Yrd Mat Min Exi Min Mat Combat Hostiles Destroyed 19 | . 5 6 . 3 5 Guns 2 | . 1 . . . 1 Cannons 17 | . 4 6 . 3 4 Classes Destroyed 9 | . 4 3 . . 2 Worker 1 | . . 1 . . . Hauler 1 | . 1 . . . . Recycler 2 | . . 1 . . 1 Watcher 2 | . 2 . . . . Swarmer 9 | . 2 4 . 3 . Grunt 4 | . 3 . . . 1 Brawler 1 | . . . . . 1 Sentry 3 | . . . . . 3 Demolisher 2 | . . 2 . . . Best Kill Streak 5 | . 5 2 . 3 2 Combat Bots Only 4 | . 4 2 . 3 2 Max Kills in Single Turn 2 | . 2 1 . 1 1 Gunslinging . | . . . . . . Exploded . | . . . . . . Melee . | . . . . . . Uniques/NPCs Destroyed . | . . . . . . Combat | -11 -10 -10 -10 -9 -8 -------- Run | Yrd Mat Min Exi Min Mat Hostile Shots Fired 48 | . 13 15 . 6 14 Missed 12 | . 3 4 . 1 4 Damage Taken 360 | . 71 165 . 21 103 Core 29 | . 3 11 . . 15 Absorbed by Shields . | . . . . . . Ignored by Resistances 228 | . 46 100 . 17 65 Core Remaining (%) 97 | 100 . . . 94 . Volleys Fired 44 | . 13 11 . 3 17 Largest 3 | . 3 3 . 3 3 Hottest 114 | . 110 105 . 105 114 Shots Fired 128 | . 39 33 . 9 47 Gun 20 | . 18 . . . 2 Cannon 108 | . 21 33 . 9 45 Launcher . | . . . . . . Special . | . . . . . . Kinetic 116 | . 27 33 . 9 47 Thermal 12 | . 12 . . . . Explosive . | . . . . . . Electromagnetic . | . . . . . . Robot Hit Streak 19 | . 19 6 . 8 9 Robot Miss Streak 1 | . 1 1 . . 1 Penetration Max . | . . . . . . Secondary Targets . | . . . . . . Shots Hit Robots 86 | . 27 21 . 5 33 Core Hits 35 | . 12 9 . 3 11 Critical Kills . | . . . . . . Critical Parts Destroyed . | . . . . . . Critical Strikes 1 | . . . . . 1 Blast 1 | . . . . . 1 Melee Attacks . | . . . . . . Impact . | . . . . . . Slashing . | . . . . . . Piercing . | . . . . . . Sneak Attacks . | . . . . . . Combat Hostiles . | . . . . . . Follow-up Attacks . | . . . . . . Damage Inflicted 1496 | . 423 419 . 111 543 Guns 190 | . 152 . . . 38 Cannons 1271 | . 269 412 . 85 505 Explosions . | . . . . . . Melee . | . . . . . . Ramming 35 | . 2 7 . 26 . Kinetic 1366 | . 326 412 . 85 543 Thermal 95 | . 95 . . . . Explosive . | . . . . . . Electromagnetic . | . . . . . . Impact . | . . . . . . Slashing . | . . . . . . Piercing . | . . . . . . Highest Corruption . | . . . . . . Average Corruption . | . . . . . . Corruption Purged . | . . . . . . Corruption Blocked . | . . . . . . Overload Shots . | . . . . . . Overflow Damage . | . . . . . . Projectiles . | . . . . . . Explosions . | . . . . . . Melee . | . . . . . . Knockbacks 15 | . 3 6 . . 6 Impact . | . . . . . . Kinetic 15 | . 3 6 . . 6 Secondary . | . . . . . . Self-Inflicted Damage . | . . . . . . Shots . | . . . . . . Rammed 5 | . 1 2 . 2 . Targets Rammed 6 | . 1 3 . 2 . Kicked . | . . . . . . Crushed 1 | . . 1 . . . Highest Temperature 242 | . 222 145 . 162 242 Average Temperature 89 | . 104 62 . 81 98 Received Heat Transfer 117 | . 54 . . . 63 Effects 2 | . 1 . . . 1 Interference 2 | . 1 . . . 1 Siege Activations . | . . . . . . Robots Corrupted . | . . . . . . Combat Hostiles . | . . . . . . Parts Fried . | . . . . . . Impact Corruptions . | . . . . . . Robots Melted . | . . . . . . Combat Hostiles . | . . . . . . Parts Melted 1 | . 1 . . . . Heat Transferred 260 | . 260 . . . . Parts Sabotaged . | . . . . . . Parts Stolen . | . . . . . . Parts Stripped . | . . . . . . Power Chain Reactions . | . . . . . . Alert | -11 -10 -10 -10 -9 -8 ------- Run | Yrd Mat Min Exi Min Mat Peak Influence 193 | . 193 103 . 70 157 Initial 53 | . . 53 . . . Average 41 | . 81 26 . 30 75 Maximum Alert Level . | . . . . . . Low Security (%) 100 | 100 100 100 . 100 100 Level 1 . | . . . . . . Level 2 . | . . . . . . Level 3 . | . . . . . . Level 4 . | . . . . . . Level 5 . | . . . . . . High Security . | . . . . . . Max Security . | . . . . . . Squads Dispatched . | . . . . . . Investigation . | . . . . . . Extermination . | . . . . . . Reinforcement . | . . . . . . Assault . | . . . . . . Garrison . | . . . . . . Intercept . | . . . . . . Searches Triggered . | . . . . . . Construction Impeded . | . . . . . . Haulers Reinforced . | . . . . . . Active Scanning Responses . | . . . . . . Cargo Convoy Interrupts . | . . . . . . Stealth | -11 -10 -10 -10 -9 -8 --------- Run | Yrd Mat Min Exi Min Mat Distress Signals . | . . . . . . Communications Jammed . | . . . . . . Distress Signals . | . . . . . . Times Spotted 21 | . 7 5 . 3 6 Peak Tracking Total 3 | . 2 2 . 3 2 Tactical Retreats . | . . . . . . Traps | -11 -10 -10 -10 -9 -8 ------- Run | Yrd Mat Min Exi Min Mat Traps Triggered 1 | . . . . . 1 Indirectly . | . . . . . . Trap Hack Attempts . | . . . . . . Triggered . | . . . . . . Disarmed . | . . . . . . Reprogrammed . | . . . . . . Reused . | . . . . . . Traps Extracted . | . . . . . . Installed . | . . . . . . Triggered . | . . . . . . Machines | -11 -10 -10 -10 -9 -8 ---------- Run | Yrd Mat Min Exi Min Mat Machines Disabled 1 | . . 1 . . . Max in Single Turn 1 | . . 1 . . . Machines Repaired . | . . . . . . Machines Dismantled . | . . . . . . Machines Sabotaged . | . . . . . . Overloaded Fab Kills . | . . . . . . Hacking | -11 -10 -10 -10 -9 -8 --------- Run | Yrd Mat Min Exi Min Mat Machines Accessed 8 | . 2 . 1 1 4 Terminals 4 | . 2 . . . 2 Fabricators . | . . . . . . Repair Stations . | . . . . . . Recycling Units 1 | . . . . . 1 Scanalyzers 1 | . . . . . 1 Garrison Access . | . . . . . . Total Hacks 27 | . 8 . 5 1 13 Successful 19 | . 4 . 5 1 9 Failed 8 | . 4 . . . 4 Catastrophic 2 | . . . . . 2 Database Lockouts . | . . . . . . Manual 11 | . 6 . . . 5 Terminals 15 | . 8 . . . 7 Fabricators . | . . . . . . Repair Stations . | . . . . . . Recycling Units 1 | . . . . . 1 Scanalyzers 5 | . . . . . 5 Garrison Access . | . . . . . . Terminal Hacks 13 | . 4 . 5 1 3 Record 5 | . . . 5 . . Part Schematic 2 | . 2 . . . . Robot Analysis 1 | . 1 . . . . Open Door 1 | . . . . 1 . Terminal Index 1 | . . . . . 1 Scanalyzer Index 1 | . . . . . 1 Locate Traps 1 | . 1 . . . . Hauler Manifests 1 | . . . . . 1 Fabricator Hacks . | . . . . . . Repair Station Hacks . | . . . . . . Recycling Unit Hacks 1 | . . . . . 1 Report Inventory 1 | . . . . . 1 Scanalyzer 5 | . . . . . 5 Insert Component 3 | . . . . . 3 Analyze 2 | . . . . . 2 Garrison Access Hacks . | . . . . . . Unauthorized Hacks . | . . . . . . Terminals . | . . . . . . Fabricators . | . . . . . . Repair Stations . | . . . . . . Recycling Units . | . . . . . . Scanalyzers . | . . . . . . Garrison Access . | . . . . . . Data Cores Recovered . | . . . . . . Used . | . . . . . . Hacking Detections 5 | . 2 . . . 3 Full Trace Events . | . . . . . . Feedback Events . | . . . . . . Feedback Blocked . | . . . . . . Robot Schematics Acquired . | . . . . . . Robots Built . | . . . . . . Authchips . | . . . . . . Time . | . . . . . . Total Robot Build Rating . | . . . . . . Part Schematics Acquired 4 | . 2 . . . 2 Parts Built . | . . . . . . Authchips . | . . . . . . Time . | . . . . . . Total Part Build Rating . | . . . . . . Parts Repaired . | . . . . . . Time . | . . . . . . Parts Recycled . | . . . . . . Recycled Matter . | . . . . . . Retrieved Matter . | . . . . . . Retrieved Components . | . . . . . . Parts Scanalyzed 2 | . . . . . 2 Part Schematics Acquired 2 | . . . . . 2 Parts Damaged . | . . . . . . Bothacking | -11 -10 -10 -10 -9 -8 ------------ Run | Yrd Mat Min Exi Min Mat Used RIF Installer . | . . . . . . Robots Hacked . | . . . . . . Non-combat . | . . . . . . Combat . | . . . . . . Robot Hacks Applied . | . . . . . . Relay Couplers Released . | . . . . . . Fabnet Peak Effective % . | . . . . . . Robots Rewired . | . . . . . . Allies Hacked . | . . . . . . Hacks Repelled . | . . . . . . Allies | -11 -10 -10 -10 -9 -8 -------- Run | Yrd Mat Min Exi Min Mat Total Allies . | . . . . . . Largest Group . | . . . . . . Highest-Rated Group . | . . . . . . Highest-Rated Ally . | . . . . . . Total Orders . | . . . . . . Ally Attacks . | . . . . . . Total Damage . | . . . . . . Kills . | . . . . . . Allies Corrupted . | . . . . . . Allies Melted . | . . . . . . Intel | -11 -10 -10 -10 -9 -8 ------- Run | Yrd Mat Min Exi Min Mat Robot Analysis Total 1 | . 1 . . . . Derelict Logs Recovered 1 | . . . . 1 . Drone Launches . | . . . . . . Drone Recoveries . | . . . . . . Exploration | -11 -10 -10 -10 -9 -8 ------------- Run | Yrd Mat Min Exi Min Mat Turns Passed 3604 | 5 342 1346 563 854 494 Spaces Moved 2115 | 5 198 790 351 523 248 Core . | . . . . . . Treads 1974 | . 62 790 351 523 248 Legs 141 | 5 136 . . . . Wheels . | . . . . . . Hover . | . . . . . . Flight . | . . . . . . Fastest Speed 120 | 120 120 160 160 160 158 Average Speed 157 | 120 132 160 160 160 159 Slowest Speed 190 | 120 190 160 160 160 160 Overloaded Moves . | . . . . . . Propulsion Burnouts . | . . . . . . Robots Hopped . | . . . . . . Cave-ins Triggered . | . . . . . . Exploration Rate (%) 58 | 2 44 98 85 100 22 Regions Visited 5 Branch Regions 3 Pre-discovered Areas 3 | . . 1 1 1 . Known Exits Taken 5 | 1 1 1 1 1 . Unknown Exits Taken . | . . . . . . Scrap Searched 2 | . . 2 . . . Spaces Dug . | . . . . . . Terrain Destroyed . | . . . . . . Melee . | . . . . . . Projectile . | . . . . . . AOE . | . . . . . . Terrain Rammed . | . . . . . . Walls Destroyed . | . . . . . . Machines Disabled . | . . . . . . Actions | -11 -10 -10 -10 -9 -8 --------- Run | Yrd Mat Min Exi Min Mat Total 2294 | 4 249 847 353 533 308 Wait 60 | . 14 40 . . 6 Move 2110 | 4 197 789 350 522 248 Hop . | . . . . . . Pick Up 29 | . 8 2 1 1 17 Fast Attach 7 | . 3 . . 1 3 Attach 6 | . 1 . . . 5 Detach 1 | . . . . . 1 Swap 11 | . 4 . 1 1 5 Drop 20 | . 8 2 1 3 6 Fire 44 | . 13 11 . 3 17 Melee . | . . . . . . Ram . | . . . . . . Kick . | . . . . . . Crush 6 | . 1 3 . 2 . Escape Stasis . | . . . . . . Rewire . | . . . . . . Trap . | . . . . . . Miscellaneous . | . . . . . . Route ------- -11/Scrapyard -10/Materials -10/Mines (discovered 3 exits: *Mat x2 / *Exi) -10/Exiles -9/Mines (discovered 2 exits: *Mat x2) -8/Materials History --------- Turn | Location | Event 1 | -11/Scrapyard | Identified exit to Materials 1 | -11/Scrapyard | Discovered exit to Materials (range 3) 6 | -11/Scrapyard | Entered Materials 6 | -10/Materials | Evolved 1 slot: Weapon x1 169 | -10/Materials | Identified exit to Mines 169 | -10/Materials | Discovered exit to Mines (range 13) 324 | -10/Materials | Build established: Hacker-Tank 348 | -10/Materials | Entered Mines 358 | -10/Mines | Met a Derelict bent on vengeance 510 | -10/Mines | Identified exit to Materials 510 | -10/Mines | Discovered exit to Materials (range 9) 769 | -10/Mines | Received a Rocket Launcher from a helpful Derelict 938 | -10/Mines | Assembled infested the area 1305 | -10/Mines | Learned location of Storage (-9) 1363 | -10/Mines | Discovered exit to Materials (range 5) 1686 | -10/Mines | Deemed a non-threat by the Exiles lab entrance 1688 | -10/Mines | Identified exit to Exiles 1688 | -10/Mines | Discovered exit to Exiles (range 5) 1694 | -10/Mines | Entered Exiles 1731 | -10/Exiles | Met 8R-AWN 1760 | -10/Exiles | Met EX-HEX 1816 | -10/Exiles | Met EX-BIN 1925 | -10/Exiles | Met EX-DEC 1934 | -10/Exiles | Learned location of Zion (-6) 1998 | -10/Exiles | Visited The Gauntlet 2240 | -10/Exiles | Identified exit to Mines 2240 | -10/Exiles | Discovered exit to Mines (range 14) 2257 | -10/Exiles | Entered Mines 2443 | -9/Mines | Identified exit to Materials 2443 | -9/Mines | Discovered exit to Materials (range 15) 2578 | -9/Mines | Found the Drone Emporium 2593 | -9/Mines | Found Prototype Device 2796 | -9/Mines | Discovered exit to Materials (range 3) 3111 | -9/Mines | Entered Materials 3111 | -8/Materials | Evolved 4 slots: Propulsion x2, Utility x2 3143 | -8/Materials | Identified Bomb Drone Bay 3605 | -8/Materials | Self-destructed Last Messages --------------- A-02 Transporter 6x Imp. Medium Laser A-02 Transporter 5x Targeting Computer >>Index(Terminals) Found 12 terminals. Downloaded coordinate data. >>Index(Scanalyzers) Found 2 scanalyzers. Downloaded coordinate data. 03581_ Y-45 Defender destroyed. 03583_ Acquired 51 matter. 03599_ Dropped Lgt. Treads. 03600_ Acquired Lrn. Tractor Beam. 03605_ Connecting with Recycling Unit... >>Recycling(Report) Matter reserves: 0 Inventory: Imp. Propulsion Shielding (71%) Arm. Treads (56%) Map ----- +----------------------------------------------------+ | | | | | | | | | | | | | | | | | | | | | | | | | | | | | | | | | | | | | | | ????????????????????????????????????????????###### | | ????????????????????????????????????????????# | | ????????????????????????????????????????????# """ | | ??????????????????????########??????????????# """ | | ?????????????????????## """ #######????????# """ | | ?????????????????????# "Y" # #????????# | | ??????????????????????# @ !# ############### | | ??????????????????????# !!![; | | ??????????????????????# !!!=#= ############### | | ??????????????????????#= !! # #??????# | | ??????????????????????##############??????# """ | | ??????????????????????????????????????????# """ | | ??????????????????????????????????????????# """ | | ??????????????????????????????????????????# | | ??????????????????????????????????????????# """ | | ??????????????????????????????????????????# """ | | ??????????????????????????????????????????? """ | | ??????????????????????????????????????????? | | ??????????????????????????????????????????######## | | ?????????????????????????????????????????????????? | | ?????????????????????????????????????????????????? | | ?????????????????????????????????????????????????? | | ?????????????????????????????????????????????????? | | ?????????????????????????????????????????????????? | | ?????????????????????????????????????????????????? | | ?????????????????????????????????????????????????? | | ?????????????????????????????????????????????????? | | ?????????????????????????????????????????????????? | | ?????????????????????????????????????????????????? | | ?????????????????????????????????????????????????? | | ?????????????????????????????????????????????????? | +----------------------------------------------------+ Best States ------------- Heat Dissipation 41 Energy Generation 10 Energy Capacity 125 Matter Stores 300 Matter Capacity 300 Sight Range 16 Terrain Scan Density 10 Armor Coverage 300 Resistance: KI 35 Resistance: TH 35 Resistance: EX 35 Resistance: EM 35 Resistance: I 35 Resistance: S 35 Resistance: P 35 Evasion (%) 55 Recoil Reduction 4 Offensive Hacking 20 Item Schematics ----------------- Hcp. Storage Unit | -10/Materials | Hacked Lrg. Storage Unit | -10/Materials | Hacked Cmb. Airjet | -8/Materials | Scanalyzed Adv. Treads | -8/Materials | Scanalyzed Robot Schematics ------------------ None Fabricated ------------ Nothing Alien Tech Used ----------------- None Achievements -------------- None Challenges ------------ None Game ------ Seed MetafiberKineticLauncher Manual? 0 Play Time 00:22:23 Cumulative 253.8 hours Start 2024.03.07 @ 12:23:58 End 2024.03.11 @ 14:55:25 Sessions 5 Manual Loads 0 Difficulty Explorer Special Mode None Game No. 103 Rogue 65 Adventurer 29 Explorer 9 Win Type - Total 11 Types 6/0/1/2/0/0/1/0/1 Lore% 59 Gallery% 77 Achievement% 76 Wizard Run 0 Options --------- Layout 0 ASCII 0 Keyboard 0 Movement Numpad Keybinds 0 Fullscreen 2 Font 24/Smallcaps Map View 76x50 Zoom Use 0% Tactical HUD 1 Map Filters NONE Filters LOW_CONTRAST(13,24,33) Steam 1 RUN: 4689ebec-d9b0-4587-83d2-0c1fba2f09f3